bitfinex/quotes_SOLUSD_20240620
["timestamp","ask_amount","ask_price","bid_price","bid_amount"]
[1718911522739,21.761,133.99,133.91,20.0]
[1718911522947,21.761,133.99,133.92,45.0]
[1718911523364,21.761,133.99,133.93,20.0]
[1718911524744,21.761,133.99,133.94,45.0]
[1718911525146,21.761,133.99,133.93,20.0]
[1718911527248,21.761,133.99,133.9,20.0]
[1718911527448,21.761,133.99,133.91,45.0]
[1718911527665,21.761,133.99,133.92,20.0]
[1718911529364,21.761,133.99,133.96,9.38]
[1718911530476,21.761,133.99,133.92,20.0]
[1718911530684,21.761,133.99,133.95,9.38]
[1718911531761,21.761,133.99,133.96,9.38]
[1718911532156,21.761,133.99,133.92,20.0]
[1718911532473,21.761,133.99,133.95,9.38]
[1718911534078,21.761,133.99,133.96,9.38]
[1718911534283,21.761,133.99,133.97,9.38]
[1718911535154,21.761,133.99,133.96,9.38]
[1718911535366,9.38,133.98,133.92,20.0]
[1718911535560,9.38,133.98,133.88,20.0]
[1718911535764,9.38,133.98,133.92,9.38]
[1718911535970,31.141,133.99,133.93,29.38]
[1718911536257,21.761,133.99,133.93,29.38]
[1718911536452,31.141,133.99,133.93,29.38]
[1718911536874,21.761,133.99,133.93,29.38]
[1718911537079,31.141,133.99,133.93,29.38]
[1718911537964,9.38,133.98,133.93,20.0]
[1718911538278,9.38,133.97,133.92,9.38]
[1718911540254,9.38,133.98,133.93,9.38]
[1718911540470,21.761,133.99,133.94,9.38]
[1718911540752,21.761,133.99,133.95,9.38]
[1718911541161,31.141,133.99,133.94,9.38]
[1718911541367,21.761,133.99,133.86,297.3622]
[1718911541562,21.761,133.99,133.89,50.6]
[1718911541868,21.761,133.99,133.9,65.34]
[1718911544592,21.761,133.99,133.9,65.0]
[1718911544979,21.761,133.99,133.9,20.0]
[1718911545284,21.761,133.99,133.88,20.0]
[1718911545886,22.8643,133.96,133.85,28.15]
[1718911546395,28.15,133.98,133.83,15.1303]
[1718911546693,22.4014,133.95,133.83,15.1303]
[1718911547071,22.4014,133.95,133.84,7.4712]
[1718911547297,22.4014,133.95,133.83,7.472]
[1718911547593,30.0,133.94,133.83,7.472]
[1718911547767,66.4876,133.93,133.81,645.0]
[1718911548086,6.0872,133.92,133.79,43.1894]
[1718911548289,6.0872,133.92,133.82,7.4726]
[1718911548503,6.0872,133.92,133.83,7.4721]
[1718911548683,30.0,133.91,133.84,7.4715]
[1718911548870,30.0,133.91,133.79,65.6394]
[1718911549070,30.0,133.91,133.8,0.93052791]
[1718911549275,30.0,133.91,133.83,7.4719]
[1718911549481,30.0,133.91,133.84,20.0]
[1718911550595,30.0,133.91,133.83,27.4721]
[1718911551187,30.0,133.91,133.83,20.0]
[1718911551566,30.0,133.91,133.81,42.45]
[1718911551774,30.0,133.91,133.82,45.51]
[1718911551991,30.0,133.91,133.83,27.4718]
[1718911552190,30.0,133.91,133.84,45.0]
[1718911552389,30.0,133.91,133.85,20.0]
[1718911556198,6.4411,133.89,133.8,7.4733]
[1718911556382,6.4411,133.89,133.81,27.4731]
[1718911557802,6.4411,133.89,133.82,45.0]
[1718911557999,6.4411,133.89,133.83,20.0]
[1718911563501,6.4411,133.89,133.85,9.39]
[1718911564976,6.4411,133.89,133.87,9.39]
[1718911565508,6.4411,133.89,133.86,9.39]
[1718911565994,6.4411,133.89,133.87,0.62386948]
[1718911566186,6.4411,133.89,133.86,9.39]
[1718911568990,15.4193,133.9,133.83,42.45]
[1718911569193,30.0,133.91,133.89,9.39]
[1718911569391,30.0,133.91,133.9,9.39]
[1718911569587,30.0,133.91,133.9,29.39]
[1718911569803,30.0,133.91,133.9,74.39]
[1718911570191,6.1806,133.93,133.9,74.39]
[1718911570392,6.1806,133.93,133.92,9.39]
[1718911571602,6.1806,133.93,133.9,65.0]
[1718911571810,6.1806,133.96,133.92,9.39]
[1718911572015,6.1806,133.96,133.94,9.39]
[1718911574513,15.7962,133.98,133.95,0.66716344]
[1718911574713,15.7962,133.98,133.95,10.05716344]
[1718911575007,6.0323,134.0,133.97,9.39]
[1718911575509,6.0323,134.0,133.98,0.66717312]
[1718911576224,16.2266,134.01,133.97,9.39]
[1718911576520,0.2583517,134.03,134.0,9.39]
[1718911576721,0.2583517,134.03,133.98,20.0]
[1718911576911,0.2583517,134.03,133.94,20.0]
[1718911577215,0.2583517,134.03,133.98,9.39]
[1718911577387,0.2583517,134.03,133.99,0.66819394]
[1718911577589,0.2583517,134.03,133.96,20.66819394]
[1718911577789,0.2583517,134.03,133.97,45.0]
[1718911577998,0.2583517,134.03,133.98,20.0]
[1718911579692,0.2583517,134.03,133.99,45.0]
[1718911579892,0.2583517,134.03,134.0,20.0]
[1718911580993,0.2583517,134.03,133.91,22.45]
[1718911581393,0.2583517,134.03,133.93,20.0]
[1718911582900,0.2583517,134.03,133.94,45.0]
[1718911583095,0.2583517,134.03,133.95,20.0]
[1718911589003,0.2583517,134.03,133.96,45.0]
[1718911589421,0.2583517,134.03,133.95,20.0]
[1718911589722,0.2583517,134.03,133.93,20.0]
[1718911589907,0.2583517,134.03,133.94,45.0]
[1718911590107,0.2583517,134.03,133.95,20.0]
[1718911590307,0.2583517,134.03,133.96,45.0]
[1718911591018,0.2583517,134.03,133.97,20.0]
[1718911592430,6.1582683,134.03,133.97,20.0]
[1718911592626,0.2583517,134.03,133.97,20.0]
[1718911592799,0.2583517,134.03,133.98,45.0]
[1718911593006,0.2583517,134.03,133.99,20.0]
[1718911596222,0.2583517,134.03,133.92,15.4976]
[1718911596427,0.2583517,134.03,133.93,20.0]
[1718911597527,0.2583517,134.03,133.94,45.0]
[1718911597732,0.2583517,134.03,133.95,20.0]
[1718911598415,0.2583517,134.03,133.93,20.0]
[1718911599404,0.2583517,134.03,133.94,45.0]
[1718911599809,0.2583517,134.03,133.95,20.0]
[1718911601513,9.38,134.02,133.96,9.38]
[1718911602442,9.38,134.02,133.97,9.38]
[1718911603213,0.2583517,134.03,133.98,9.38]
[1718911603214,9.6383517,134.03,133.98,9.38]
[1718911604020,9.38,134.02,133.95,20.0]
[1718911604217,9.38,134.02,133.97,9.38]
[1718911604516,9.38,134.02,133.96,9.38]
[1718911604932,9.38,134.02,133.97,9.38]
[1718911605154,9.6383517,134.03,133.97,9.38]
[1718911605720,0.2583517,134.03,133.97,9.38]
[1718911606045,9.6383517,134.03,133.97,9.38]
[1718911607816,0.2583517,134.03,133.98,9.38]
[1718911607956,9.6383517,134.03,133.97,9.38]
[1718911612858,0.2583517,134.03,133.99,9.38]
[1718911613050,0.2583517,134.03,134.0,9.38]
[1718911613260,0.2583517,134.03,133.98,9.38]
[1718911613560,0.2583517,134.03,134.02,9.38]
[1718911614052,0.2583517,134.03,134.01,9.38]
[1718911615151,0.2583517,134.03,133.98,9.38]
[1718911615356,0.2583517,134.03,134.02,9.38]
[1718911618654,0.2583517,134.03,133.99,65.0]
[1718911618864,0.2583517,134.03,133.99,20.0]
[1718911619173,0.2583517,134.03,133.99,9.38]
[1718911620567,21.4164,134.02,133.97,9.38]
[1718911621551,21.4164,134.02,133.98,9.38]
[1718911623347,21.4164,134.02,133.99,9.38]
[1718911624261,0.2583517,134.03,134.01,9.38]
[1718911624450,0.2583517,134.03,134.02,9.38]
[1718911625693,0.2583517,134.03,133.98,37.52]
[1718911625975,0.2583517,134.03,134.02,9.38]
[1718911630391,0.2583517,134.03,134.02,29.38]
[1718911630564,0.2583517,134.03,134.02,74.38]
[1718911630767,0.2583517,134.03,134.02,74.89]
[1718911635873,0.2583517,134.03,134.02,97.34]
[1718911636595,6.2092,134.13,134.02,134.86]
[1718911636900,6.2092,134.13,134.09,9.38]
[1718911637701,7.1555621,134.16,134.12,9.38]
[1718911638106,7.1555621,134.16,134.11,9.38]
[1718911638281,9.38,134.15,134.06,15.3674]
[1718911638586,9.38,134.14,134.09,9.38]
[1718911638765,0.8290621,134.16,134.1,65.0]
[1718911638968,0.8290621,134.16,134.15,9.38]
[1718911639477,0.8290621,134.16,134.1,65.0]
[1718911639478,0.8290621,134.16,134.11,50.5]
[1718911639683,0.8290621,134.16,134.12,65.17]
[1718911639897,0.8290621,134.16,134.13,15.3674]
[1718911640276,0.8290621,134.16,134.14,65.0]
[1718911641890,0.8290621,134.16,134.14,115.5]
[1718911642089,0.8290621,134.16,134.15,0.34]
[1718911642285,0.8290621,134.16,134.14,93.05]
[1718911644391,0.8290621,134.16,134.15,0.51]
[1718911645296,0.8290621,134.16,134.14,93.05]
[1718911646493,0.8290621,134.16,134.15,0.17]
[1718911649818,0.8290621,134.16,134.15,0.51]
[1718911650032,21.4621,134.28,134.17,22.45]
[1718911650194,21.4621,134.28,134.18,93.56]
[1718911650903,21.4621,134.28,134.18,116.01]
[1718911651119,21.4621,134.28,134.18,131.8214]
[1718911653324,21.4621,134.28,134.18,93.05]
[1718911653528,21.4621,134.28,134.18,65.0]
[1718911653705,21.4621,134.28,134.18,20.0]
[1718911654021,21.4621,134.28,134.16,20.0]
[1718911654995,21.4621,134.28,134.16,42.45]
[1718911655193,21.4621,134.28,134.16,20.0]
[1718911655434,21.4621,134.28,134.16,42.45]
[1718911655599,21.4621,134.28,134.18,28.05]
[1718911655799,21.4621,134.28,134.19,65.17]
[1718911656211,21.4621,134.28,134.2,0.34]
[1718911657542,21.4621,134.28,134.21,0.17]
[1718911657733,6.03451483,134.31,134.22,15.3635]
[1718911658034,6.1794,134.32,134.23,66.48787959]
[1718911658336,6.1794,134.32,134.23,65.0]
[1718911659130,6.1794,134.32,134.24,28.39]
[1718911659427,6.1794,134.32,134.25,65.0]
[1718911666433,6.1794,134.32,134.25,20.0]
[1718911666612,6.1794,134.32,134.22,20.0]
[1718911667027,6.1794,134.32,134.22,19.5]
[1718911667842,6.1794,134.32,134.23,45.0]
[1718911668019,6.1794,134.32,134.22,19.5]
[1718911669335,6.1794,134.32,134.23,45.0]
[1718911669529,6.1794,134.32,134.24,20.0]
[1718911670824,6.1794,134.32,134.25,45.0]
[1718911671019,6.1794,134.32,134.26,20.0]
[1718911671827,6.1794,134.32,134.27,45.0]
[1718911672137,6.1794,134.32,134.28,20.0]
[1718911673144,15.3113,134.33,134.28,20.0]
[1718911676444,15.3113,134.33,134.29,45.0]
[1718911676618,15.3113,134.33,134.29,65.0]
[1718911679158,15.3113,134.33,134.29,20.0]
[1718911679442,15.3113,134.33,134.23,22.7267]
[1718911679443,15.3113,134.33,134.25,20.0]
[1718911679640,15.3113,134.33,134.26,45.0]
[1718911679845,15.3113,134.33,134.27,20.0]
[1718911680333,15.3113,134.33,134.26,20.0]
[1718911680536,15.3113,134.33,134.27,45.0]
[1718911680726,15.3113,134.33,134.28,20.0]
[1718911681326,15.3113,134.33,134.29,45.0]
[1718911681545,15.3113,134.33,134.29,65.0]
[1718911682254,6.2319,134.35,134.29,65.0]
[1718911683466,6.2319,134.35,134.29,65.17]
[1718911683649,6.2319,134.35,134.29,65.51]
[1718911683854,15.8078,134.37,134.29,87.96]
[1718911684977,15.8078,134.37,134.29,103.6728]
[1718911688374,7.0616299,134.38,134.29,103.6728]
[1718911688581,7.0616299,134.38,134.33,28.05]
[1718911688784,0.6651299,134.38,134.34,65.51]
[1718911689159,0.6651299,134.38,134.34,65.34]
[1718911689466,0.6651299,134.38,134.34,65.0]
[1718911691370,0.6651299,134.38,134.36,28.05]
[1718911691680,0.6651299,134.38,134.37,65.0]
[1718911692380,0.6651299,134.38,134.37,65.17]
[1718911692566,0.6651299,134.38,134.37,65.51]
[1718911692774,0.6651299,134.38,134.37,87.96]
[1718911695883,0.464178,134.41,134.37,87.96]
[1718911696085,0.464178,134.41,134.4,28.05]
[1718911696291,0.464178,134.41,134.4,93.56]
[1718911697188,0.464178,134.41,134.4,116.01]
[1718911697782,0.8290621,134.43,134.42,22.45]
[1718911697997,6.113,134.53,134.42,42.96]
[1718911698298,6.113,134.53,134.43,93.56]
[1718911698900,6.113,134.53,134.43,116.01]
[1718911699676,6.113,134.53,134.46,28.05]
[1718911699880,6.113,134.53,134.47,65.0]
[1718911700487,6.113,134.53,134.48,0.51]
[1718911701401,5.613,134.53,134.48,0.51]
[1718911702200,13.0464,134.53,134.48,0.51]
[1718911702700,13.0464,134.53,134.47,87.45]
[1718911702701,5.613,134.53,134.47,65.0]
[1718911702904,7.4345,134.51,134.47,65.0]
[1718911703486,7.4339,134.52,134.47,65.0]
[1718911704002,7.4324,134.55,134.48,0.17]
[1718911704216,16.7051621,134.56,134.48,0.51]
[1718911704504,7.4321,134.55,134.48,0.51]
[1718911704804,23.2694621,134.56,134.49,28.05]
[1718911705006,7.4322,134.55,134.5,65.0]
[1718911705515,30.7012621,134.56,134.5,65.0]
[1718911705726,0.8290621,134.56,134.5,65.0]
[1718911705911,0.8290621,134.56,134.51,0.51]
[1718911706101,0.8290621,134.56,134.52,28.05]
[1718911706304,0.8290621,134.56,134.53,45.17]
[1718911706615,0.8290621,134.56,134.55,28.05]
[1718911706812,0.8290621,134.56,134.55,96.01]
[1718911707122,0.8290621,134.56,134.55,116.01]
[1718911708209,0.8290621,134.56,134.55,87.96]
[1718911708728,0.8290621,134.56,134.55,65.51]
[1718911708918,0.8290621,134.56,134.55,87.62]
[1718911709232,0.8290621,134.56,134.55,87.96]
[1718911711911,0.8290621,134.56,134.55,20.0]
[1718911712510,0.8290621,134.56,134.54,20.0]
[1718911713022,1.0649715,134.66,134.55,22.45]
[1718911713023,7.4272,134.64,134.55,22.45]
[1718911713330,1.0649715,134.66,134.55,22.45]
[1718911713331,7.4268,134.65,134.58,28.05]
[1718911713511,7.4268,134.65,134.59,65.17]
[1718911713831,7.4272,134.64,134.59,65.17]
[1718911714031,7.4277,134.63,134.59,65.17]
[1718911714336,1.0649715,134.66,134.59,65.17]
[1718911714337,7.4274,134.64,134.59,65.0]
[1718911715511,7.4278,134.63,134.59,65.0]
[1718911715936,7.4283,134.62,134.59,20.0]
[1718911716127,7.4283,134.62,134.56,20.0]
[1718911716431,7.4283,134.62,134.57,45.51]
[1718911716632,1.0649715,134.66,134.58,20.0]
[1718911716832,7.4289,134.61,134.58,20.0]
[1718911717135,7.4285,134.62,134.58,20.0]
[1718911717428,7.428,134.63,134.59,45.0]
[1718911717632,7.428,134.63,134.6,20.0]
[1718911718123,1.0649715,134.66,134.6,20.0]
[1718911718320,1.0649715,134.66,134.55,20.0]
[1718911718519,7.4284,134.62,134.56,45.17]
[1718911718726,7.428,134.63,134.57,20.0]
[1718911719314,7.4283,134.62,134.57,20.0]
[1718911719512,1.0649715,134.66,134.58,45.0]
[1718911719716,7.4286,134.62,134.59,20.0]
[1718911720023,7.4286,134.62,134.57,20.0]
[1718911720531,1.0649715,134.66,134.57,20.0]
[1718911720739,46.0649715,134.66,134.53,20.0]
[1718911720942,7.4296,134.6,134.53,20.0]
[1718911721120,7.4291,134.61,134.53,42.45]
[1718911721831,7.4278,134.63,134.54,50.67]
[1718911722032,7.4278,134.63,134.55,87.79]
[1718911722244,7.4278,134.63,134.56,0.17]
[1718911722424,7.4284,134.62,134.56,0.17]
[1718911723536,1.0649715,134.66,134.55,65.0]
[1718911724034,1.0649715,134.66,134.56,0.51]
[1718911724411,7.4316,134.56,134.55,20.0]
[1718911724613,7.4316,134.56,134.5,20.0]
[1718911724828,7.4323,134.55,134.49,44.6589]
[1718911725137,7.4319,134.56,134.49,44.6589]
[1718911725434,7.4313,134.57,134.49,44.6589]
[1718911725737,6.148,134.58,134.49,67.1089]
[1718911725909,7.4311,134.57,134.49,67.1089]
[1718911726112,7.4311,134.57,134.5,0.17]
[1718911726312,7.4311,134.57,134.5,20.17]
[1718911727018,7.4311,134.57,134.51,45.34]
[1718911727218,7.4311,134.57,134.52,20.17]
[1718911727415,7.4311,134.57,134.53,45.0]
[1718911727616,6.148,134.58,134.54,20.0]
[1718911728126,7.4325,134.55,134.5,20.0]
[1718911728322,7.4325,134.55,134.51,45.0]
[1718911728522,7.4325,134.55,134.52,20.0]
[1718911728726,7.4328,134.54,134.52,20.0]
[1718911729111,7.4323,134.55,134.52,20.0]
[1718911729317,6.148,134.58,134.52,20.0]
[1718911729626,7.4316,134.56,134.52,20.0]
[1718911731120,7.4322,134.55,134.52,20.0]
[1718911731323,7.4318,134.56,134.52,20.0]
[1718911731820,7.4323,134.55,134.52,20.0]
[1718911732335,7.4324,134.55,134.52,20.0]
[1718911732538,7.4319,134.56,134.52,20.0]
[1718911734334,15.2025,134.59,134.52,20.0]
[1718911734538,15.2025,134.59,134.53,45.0]
[1718911734539,7.4312,134.57,134.53,45.0]
[1718911735337,6.5273,134.61,134.53,45.0]
[1718911735338,13.9564,134.61,134.54,20.0]
[1718911735543,6.5273,134.61,134.54,20.0]
[1718911735742,7.4304,134.59,134.54,20.0]
[1718911735940,7.4311,134.57,134.54,20.0]
[1718911737133,7.4317,134.56,134.54,20.0]
[1718911737343,7.4321,134.55,134.5,20.0]
[1718911737530,7.4321,134.55,134.51,45.0]
[1718911737739,7.4321,134.55,134.52,20.0]
[1718911738450,7.4321,134.55,134.49,16.6089]
[1718911738451,7.433,134.54,134.49,16.6089]
[1718911738749,6.5273,134.61,134.46,15.3201]
[1718911738750,7.434,134.52,134.46,15.3201]
[1718911738932,7.4347,134.51,134.46,15.3201]
[1718911739136,16.3048,134.57,134.46,15.3201]
[1718911739936,7.4341,134.52,134.48,45.0]
[1718911740136,16.3048,134.57,134.48,45.0]
[1718911740137,7.4331,134.54,134.48,45.0]
[1718911740448,7.4331,134.54,134.4,38.029991]
[1718911740449,7.4361,134.48,134.4,22.45]
[1718911740637,7.4363,134.48,134.4,50.5]
[1718911741146,7.4356,134.49,134.4,50.5]
[1718911741348,7.4362,134.48,134.4,50.5]
[1718911742450,7.4367,134.47,134.4,28.05]
[1718911742625,15.4224,134.49,134.4,28.05]
[1718911742832,7.4378,134.45,134.4,28.05]
[1718911743052,7.4372,134.46,134.41,20.0]
[1718911743255,7.4367,134.47,134.41,20.0]
[1718911743970,13.8001,134.5,134.42,45.17]
[1718911744151,7.435,134.5,134.43,20.34]
[1718911744350,7.435,134.5,134.44,45.0]
[1718911744555,7.435,134.5,134.45,20.0]
[1718911746076,15.4034,134.53,134.45,20.0]
[1718911746373,7.4341,134.52,134.46,45.0]
[1718911746563,7.4345,134.51,134.47,20.0]
[1718911746770,7.4349,134.5,134.47,20.0]
[1718911746970,6.4142,134.54,134.47,20.0]
[1718911747178,7.433,134.54,134.48,45.0]
[1718911747390,7.433,134.54,134.49,20.0]
[1718911747579,7.4333,134.53,134.49,20.0]
[1718911747895,16.0619,134.56,134.49,20.0]
[1718911748074,7.4346,134.51,134.49,20.0]
[1718911748269,7.434,134.52,134.49,20.0]
[1718911749886,16.0619,134.56,134.49,20.0]
[1718911750090,7.4349,134.5,134.49,20.0]
[1718911750573,7.4367,134.47,134.4,21.8278]
[1718911750775,7.4363,134.48,134.45,20.0]
[1718911751073,7.4363,134.48,134.41,42.45]
[1718911751800,16.0619,134.56,134.41,42.45]
[1718911751801,7.4352,134.5,134.41,42.45]
[1718911752302,16.0619,134.56,134.41,42.45]
[1718911752484,65.0,134.55,134.41,42.45]
[1718911753200,7.4362,134.48,134.41,42.45]
[1718911753376,7.4357,134.49,134.41,42.45]
[1718911753577,7.4357,134.49,134.42,45.51]
[1718911753776,7.4357,134.49,134.43,20.0]
[1718911753995,7.4357,134.49,134.44,45.0]
[1718911754198,7.4357,134.49,134.45,20.0]
[1718911755973,16.0619,134.56,134.46,45.0653]
[1718911756174,7.4345,134.51,134.47,65.34]
[1718911756493,7.4334,134.53,134.47,65.0]
[1718911757491,7.4334,134.53,134.48,1.48673236]
[1718911757693,7.4325,134.55,134.49,0.17]
[1718911757894,6.0741,134.61,134.49,0.17]
[1718911758099,7.4313,134.57,134.49,0.17]
[1718911758307,7.4312,134.57,134.49,0.17]
[1718911758595,7.4313,134.57,134.49,0.17]
[1718911758984,7.4306,134.58,134.52,6.5574]
[1718911759184,7.4306,134.58,134.53,65.0]
[1718911762203,7.4312,134.57,134.53,65.0]
[1718911763800,7.4317,134.56,134.53,20.0]
[1718911764006,7.4312,134.57,134.53,20.0]
[1718911764394,7.4306,134.58,134.53,20.0]
[1718911765295,7.4311,134.57,134.53,20.0]
[1718911767196,7.4318,134.56,134.53,20.0]
[1718911767516,7.4325,134.55,134.53,20.0]
[1718911767701,7.4325,134.55,134.51,20.0]
[1718911768016,16.3082,134.63,134.51,20.0]
[1718911768306,45.0,134.62,134.51,20.0]
[1718911768688,7.4327,134.54,134.51,20.0]
[1718911768910,7.4324,134.55,134.51,20.0]
[1718911769682,7.4318,134.56,134.51,20.0]
[1718911769997,16.3082,134.63,134.51,20.0]
[1718911770187,7.4283,134.62,134.53,38.2068]
[1718911770389,7.4283,134.62,134.55,6.2556]
[1718911770594,7.4283,134.62,134.56,20.0]
[1718911771109,7.429,134.61,134.56,20.0]
[1718911771308,7.429,134.61,134.57,45.0]
[1718911771612,1.0649715,134.66,134.58,20.0]
[1718911771613,7.4272,134.64,134.58,20.0]
[1718911771791,1.0649715,134.66,134.59,45.0]
[1718911772114,7.428,134.63,134.6,20.0]
[1718911772414,7.4283,134.62,134.6,20.0]
[1718911772606,7.428,134.63,134.6,20.0]
[1718911772911,1.0649715,134.66,134.6,20.0]
[1718911773210,7.4288,134.61,134.56,20.34]
[1718911773408,1.0649715,134.66,134.57,45.0]
[1718911773409,7.4285,134.62,134.57,45.0]
[1718911773586,7.4285,134.62,134.58,20.0]
[1718911774407,7.4295,134.6,134.58,20.0]
[1718911774708,1.0649715,134.66,134.56,20.0]
[1718911774914,7.4284,134.62,134.56,20.0]
[1718911775217,7.428,134.63,134.57,45.0]
[1718911775385,7.428,134.63,134.58,20.0]
[1718911775997,7.4283,134.62,134.58,20.0]
[1718911776499,1.0649715,134.66,134.58,20.0]
[1718911777202,7.4281,134.63,134.58,20.0]
[1718911780314,7.4281,134.63,134.59,45.0]
[1718911780537,7.4283,134.62,134.6,20.0]
[1718911781398,7.4285,134.62,134.57,0.17]
[1718911781606,7.4285,134.62,134.57,45.17]
[1718911781801,1.0649715,134.66,134.59,15.5482]
[1718911782005,1.0649715,134.66,134.6,66.28850897]
[1718911782208,7.4268,134.65,134.6,66.28850897]
[1718911782404,8.4911715,134.66,134.6,66.28850897]
[1718911782605,7.427,134.65,134.6,66.28850897]
[1718911783213,8.4912715,134.66,134.61,6.119]
[1718911783411,8.4912715,134.66,134.62,65.0]
[1718911783605,8.4912715,134.66,134.63,1.48804802]
[1718911783801,8.4912715,134.66,134.62,65.0]
[1718911784108,7.427,134.65,134.62,20.0]
[1718911784308,8.4911715,134.66,134.62,20.0]
[1718911784703,1.0649715,134.66,134.62,20.0]
[1718911786111,7.427,134.65,134.62,20.0]
[1718911786519,1.0649715,134.66,134.62,20.0]
[1718911786705,7.4277,134.63,134.59,15.5482]
[1718911786912,7.4284,134.62,134.6,20.0]
[1718911787110,7.4277,134.64,134.59,15.5482]
[1718911787304,7.4279,134.63,134.59,15.5482]
[1718911788406,7.4279,134.63,134.6,20.0]
[1718911790025,7.4288,134.61,134.6,20.0]
[1718911790239,7.4285,134.62,134.6,20.0]
[1718911790403,1.0649715,134.66,134.6,20.0]
[1718911790606,7.4281,134.63,134.6,20.0]
[1718911790817,7.4283,134.62,134.6,20.0]
[1718911791821,7.4288,134.61,134.6,20.0]
[1718911792028,7.429,134.61,134.58,20.0]
[1718911792608,7.4295,134.6,134.58,20.0]
[1718911792837,7.4295,134.6,134.57,20.0]
[1718911793409,7.7234715,134.66,134.57,20.0]
[1718911793610,7.4305,134.58,134.57,20.0]
[1718911793908,7.4305,134.58,134.56,15.0479]
[1718911794216,16.4538,134.64,134.52,15.7781]
[1718911794414,16.4538,134.64,134.53,20.0]
[1718911794415,7.4318,134.56,134.53,20.0]
[1718911794613,7.4318,134.56,134.52,15.7781]
[1718911794816,7.4312,134.57,134.52,15.7781]
[1718911795144,7.4314,134.57,134.52,15.7781]
[1718911795447,7.4307,134.58,134.52,15.7781]
[1718911795742,7.4307,134.58,134.53,45.0]
[1718911796028,7.4307,134.58,134.54,20.0]
[1718911798153,7.4321,134.55,134.54,20.0]
[1718911798313,20.0,134.63,134.53,20.0]
[1718911798509,7.4319,134.56,134.53,20.0]
[1718911798721,7.4324,134.55,134.53,20.0]
[1718911799025,20.0,134.63,134.53,20.0]
[1718911799221,45.0,134.62,134.53,20.0]
[1718911799439,7.4324,134.55,134.53,20.0]
[1718911799635,7.4321,134.55,134.53,20.0]
[1718911800312,45.0,134.62,134.53,20.0]
[1718911800515,6.294,134.61,134.53,20.0]
[1718911800714,7.4327,134.54,134.53,20.0]
[1718911801323,15.1504,134.6,134.49,16.2735]
[1718911801529,7.4343,134.51,134.49,16.2735]
[1718911801822,20.0,134.59,134.49,16.2735]
[1718911801823,7.434,134.52,134.49,16.2735]
[1718911802130,7.4339,134.52,134.49,16.2735]
[1718911802311,15.1504,134.6,134.49,16.2735]
[1718911802312,7.4348,134.51,134.49,16.2735]
[1718911802918,15.1504,134.6,134.46,21.5915]
[1718911802919,7.4355,134.49,134.46,21.5915]
[1718911803131,15.1504,134.6,134.46,21.5915]